[Event "26th Hit Open-A 2022"]
[Site "Nova Gorica"]
[Date "2022.09.19"]
[Round "6.35"]
[White "Chkhaidze, Nikoloz"]
[Black "Rigatti, Giorgio"]
[Result "1-0"]
[ECO "D97"]
[WhiteElo "2239"]
[BlackElo "1763"]
[Annotator "RC"]
[PlyCount "61"]
[EventDate "2022.09.16"]
[EventType "swiss"]
[EventCountry "SLO"]
[SourceTitle "playchess.com"]
[Source "ChessBase"]
[SourceQuality "1"]
[TimeControl "5400+30"]

1. d4 {[%emt 0:00:02]} Nf6 {[%emt 0:07:19]} 2. c4 {[%emt 0:00:03]} g6 {[%emt 0:00:13]} 3. Nc3 {[%emt 0:00:03]} d5 {[%emt 0:00:07]} 4. Nf3 {[%emt 0:00:03]} Bg7 {[%emt 0:00:06]} 5. Qb3 {[%emt 0:00:04]} dxc4 {[%emt 0:00:17]} 6. Qxc4 {[%emt 0:00:03]} O-O {[%emt 0:00:06]} 7. e4 {[%emt 0:00:07]} a6 {[%emt 0:03:23]} 8. Be2 {[%emt 0:00:04]} b5 {[%emt 0:00:07]} 9. Qb3 {[%emt 0:00:15]} c5 {[%emt 0:02:53]} 10. dxc5 {[%emt 0:05:04]} Qc7 {[%emt 0:05:22]} 11. O-O {[%emt 0:15:12]} Nbd7 {[%emt 0:01:56]} 12. e5 {[%emt 0:08:29]} Nxe5 {[%emt 0:15:53]} 13. Bf4 {[%emt 0:12:14]} Nxf3+ {[%emt 0:19:07]} 14. Bxf3 {[%emt 0:00:03]} Qxf4 {[%emt 0:00:06]} 15. Bxa8 {[%emt 0:00:11]} Ng4 {[%emt 0:00:06]} 16. g3 {[%emt 0:00:22]} Qh6 {[%emt 0:00:13]} 17. h4 {[%emt 0:00:28]} g5 {[%emt 0:01:12]} 18. Nd5 {[%emt 0:07:56]} gxh4 {[%emt 0:15:52]} 19. Nxe7+ {[%emt 0:01:34]} Kh8 {[%emt 0:00:07]} 20. Rae1 {[%emt 0:00:16]} hxg3 {[%emt 0:00:58]} 21. Qxg3 {[%emt 0:00:12]} Be6 {[%emt 0:01:48]} 22. Bd5 {[%emt 0:19:02]} Bxd5 {[%emt 0:03:57]} 23. Nxd5 {[%emt 0:00:05]} f5 {[%emt 0:00:06]} 24. Kg2 {[%emt 0:18:08]} Bd4 {[%emt 0:13:22]} 25. Rh1 {[%emt 0:02:22]} Qd2 {[%emt 0:00:47]} 26. Re7 {[%emt 0:02:01]} Bg7 {[%emt 0:00:55]} 27. Nf4 {[%emt 0:01:58]} Rf6 {[%emt 0:01:08]} 28. Re8+ {[%emt 0:02:03]} Bf8 {[%emt 0:00:19]} 29. Rxf8+ {[%emt 0:00:13]} Rxf8 {[%emt 0:00:58]} 30. Ng6+ {[%emt 0:00:04]} Kg8 {[%emt 0:00:11]} 31. Nxf8 {[%emt 0:00:10]} 1-0

[Event "26th Hit Open-A 2022"]
[Site "Nova Gorica"]
[Date "2022.09.19"]
[Round "6.36"]
[White "Lohia, Sohum"]
[Black "Novak, Rok"]
[Result "1-0"]
[ECO "B12"]
[WhiteElo "2185"]
[BlackElo "1763"]
[Annotator "ChessBase"]
[PlyCount "69"]
[EventDate "2022.09.16"]
[EventType "swiss"]
[EventCountry "SLO"]
[SourceTitle "playchess.com"]
[Source "ChessBase"]
[SourceQuality "1"]
[TimeControl "5400+30"]

1. e4 {[%emt 0:00:03]} c6 {[%emt 0:00:45]} 2. d4 {[%emt 0:00:07]} d5 {[%emt 0:00:04]} 3. e5 {[%emt 0:00:18]} Bf5 {[%emt 0:00:09]} 4. h4 {[%emt 0:00:09]} h5 {[%emt 0:00:06]} 5. Bd3 {[%emt 0:00:06]} Bxd3 {[%emt 0:00:11]} 6. Qxd3 {[%emt 0:00:07]} Qa5+ {[%emt 0:00:15]} 7. Nd2 {[%emt 0:00:09]} e6 {[%emt 0:00:11]} 8. Ngf3 {[%emt 0:00:13]} Nh6 {[%emt 0:01:18]} 9. O-O {[%emt 0:00:25]} Nf5 {[%emt 0:06:43]} 10. a4 {[%emt 0:00:18]} c5 {[%emt 0:05:17]} 11. dxc5 {[%emt 0:03:05]} Qxc5 {[%emt 0:00:31]} 12. b3 {[%emt 0:01:15]} Qc7 {[%emt 0:02:20]} 13. c4 {[%emt 0:01:35]} dxc4 {[%emt 0:00:50]} 14. Nxc4 {[%emt 0:00:19]} Nc6 {[%emt 0:00:53]} 15. Bg5 {[%emt 0:13:29]} Be7 {[%emt 0:02:06]} 16. Bxe7 {[%emt 0:01:44]} Kxe7 {[%emt 0:00:35]} 17. Ne3 {[%emt 0:03:10]} Nxe3 {[%emt 0:04:18]} 18. Qxe3 {[%emt 0:00:20]} f6 {[%emt 0:01:27]} 19. Rac1 {[%emt 0:04:23]} Qa5 {[%emt 0:03:15]} 20. exf6+ {[%emt 0:01:30]} gxf6 {[%emt 0:00:15]} 21. Rfe1 {[%emt 0:01:26]} e5 {[%emt 0:00:36]} 22. Nd4 {[%emt 0:08:47]} Nxd4 {[%emt 0:00:58]} 23. Qxd4 {[%emt 0:00:06]} Rad8 {[%emt 0:00:53]} 24. Qe4 {[%emt 0:01:02]} Qb6 {[%emt 0:02:02]} 25. Qf5 {[%emt 0:06:40]} Qe6 {[%emt 0:07:13]} 26. Rc7+ {[%emt 0:02:40]} Rd7 {[%emt 0:00:21]} 27. Rxd7+ {[%emt 0:00:59]} Qxd7 {[%emt 0:01:45]} 28. Rxe5+ {[%emt 0:02:05]} fxe5 {[%emt 0:01:32]} 29. Qxe5+ {[%emt 0:00:07]} Qe6 {[%emt 0:01:17]} 30. Qxh8 {[%emt 0:00:14]} Qe1+ {[%emt 0:01:53]} 31. Kh2 {[%emt 0:00:05]} Qxf2 {[%emt 0:00:11]} 32. Qxh5 {[%emt 0:00:44]} Qf4+ {[%emt 0:02:23]} 33. Kh3 {[%emt 0:00:06]} Kd6 {[%emt 0:00:25]} 34. Qf3 {[%emt 0:00:44]} Qe5 {[%emt 0:01:57]} 35. Qg3 {[%emt 0:00:17]} 1-0

[Event "26th Hit Open-A 2022"]
[Site "Nova Gorica"]
[Date "2022.09.19"]
[Round "6.37"]
[White "Herega, Nejc"]
[Black "Vicic, Mark"]
[Result "1-0"]
[ECO "A31"]
[WhiteElo "2146"]
[BlackElo "1641"]
[Annotator "NA"]
[PlyCount "38"]
[EventDate "2022.09.16"]
[EventType "swiss"]
[EventCountry "SLO"]
[SourceTitle "playchess.com"]
[Source "ChessBase"]
[SourceQuality "1"]
[TimeControl "5400+30"]

1. Nf3 {[%emt 0:00:04]} Nf6 {[%emt 0:01:05]} 2. c4 {[%emt 0:00:12]} c5 {[%emt 0:00:03]} 3. Nc3 {[%emt 0:00:27]} Nc6 {[%emt 0:00:07]} 4. d4 {[%emt 0:00:50]} cxd4 {[%emt 0:00:34]} 5. Nxd4 {[%emt 0:00:05]} d5 {[%emt 0:00:56]} 6. cxd5 {[%emt 0:01:30]} Nxd5 {[%emt 0:00:35]} 7. Nxc6 {[%emt 0:01:12]} bxc6 {[%emt 0:00:24]} 8. Bd2 {[%emt 0:03:16]} e5 {[%emt 0:04:47]} 9. g3 {[%emt 0:04:21]} Be6 {[%emt 0:03:00]} 10. Bg2 {[%emt 0:01:33]} Be7 {[%emt 0:02:38]} 11. Qa4 {[%emt 0:07:52]} Qd7 {[%emt 0:06:27]} 12. O-O {[%emt 0:02:33]} O-O {[%emt 0:02:42]} 13. Rfd1 {[%emt 0:02:07]} Rfd8 {[%emt 0:03:02]} 14. a3 {[%emt 0:14:49]} Qb7 {[%emt 0:07:44]} 15. b4 {[%emt 0:05:25]} Rac8 {[%emt 0:01:15]} 16. Ne4 {[%emt 0:06:29]} Nf6 {[%emt 0:08:50]} 17. Be3 {[%emt 0:30:27]} a6 {[%emt 0:29:24]} 18. Rxd8+ {[%emt 0:00:00]} Bxd8 {[%emt 0:02:18]} 19. Nd6 {[%emt 0:00:00]} Nd5 {[%emt 0:01:03]} 1-0

[Event "26th Hit Open-A 2022"]
[Site "Nova Gorica"]
[Date "2022.09.19"]
[Round "6.38"]
[White "Gamal, Alaa"]
[Black "Rozman, Monika"]
[Result "0-1"]
[ECO "D13"]
[WhiteElo "1693"]
[BlackElo "2111"]
[Annotator "ChessBase"]
[PlyCount "105"]
[EventDate "2022.09.16"]
[EventType "swiss"]
[EventCountry "SLO"]
[SourceTitle "playchess.com"]
[Source "ChessBase"]
[SourceQuality "1"]
[TimeControl "5400+30"]

1. d4 {[%emt 0:02:27]} d5 {[%emt 0:00:04]} 2. Nf3 {[%emt 0:00:05]} Nf6 {[%emt 0:00:04]} 3. c4 {[%emt 0:00:26]} c6 {[%emt 0:00:06]} 4. cxd5 {[%emt 0:01:05]} cxd5 {[%emt 0:00:10]} 5. Nc3 {[%emt 0:00:24]} Nc6 {[%emt 0:00:46]} 6. Bf4 {[%emt 0:00:40]} a6 {[%emt 0:04:11]} 7. e3 {[%emt 0:03:34]} Bf5 {[%emt 0:02:16]} 8. Be2 {[%emt 0:01:20]} e6 {[%emt 0:01:26]} 9. Qb3 {[%emt 0:00:17]} Bb4 {[%emt 0:01:33]} 10. O-O {[%emt 0:02:48]} O-O {[%emt 0:02:24]} 11. Na4 {[%emt 0:03:09]} b5 {[%emt 0:03:17]} 12. Nc5 {[%emt 0:00:44]} Bxc5 {[%emt 0:01:27]} 13. dxc5 {[%emt 0:00:23]} Ne4 {[%emt 0:00:14]} 14. Rac1 {[%emt 0:01:23]} Qe7 {[%emt 0:11:36]} 15. Nd4 {[%emt 0:01:26]} Nxd4 {[%emt 0:06:15]} 16. exd4 {[%emt 0:00:46]} Rfc8 {[%emt 0:02:23]} 17. f3 {[%emt 0:01:33]} Nf6 {[%emt 0:00:11]} 18. g4 {[%emt 0:01:43]} Bg6 {[%emt 0:00:25]} 19. h4 {[%emt 0:12:48]} h6 {[%emt 0:02:47]} 20. Qe3 {[%emt 0:05:42]} Nd7 {[%emt 0:03:59]} 21. g5 {[%emt 0:02:18]} hxg5 {[%emt 0:06:23]} 22. hxg5 {[%emt 0:00:04]} f6 {[%emt 0:00:42]} 23. Bd6 {[%emt 0:02:16]} Qe8 {[%emt 0:00:22]} 24. f4 {[%emt 0:00:49]} Bf5 {[%emt 0:08:33]} 25. Rf2 {[%emt 0:00:47]} fxg5 {[%emt 0:13:05]} 26. fxg5 {[%emt 0:01:18]} Qg6 {[%emt 0:00:08]} 27. Qg3 {[%emt 0:02:20]} Nf8 {[%emt 0:06:18]} 28. Rh2 {[%emt 0:03:11]} Nh7 {[%emt 0:00:32]} 29. Bf4 {[%emt 0:00:37]} e5 {[%emt 0:01:13]} 30. dxe5 {[%emt 0:02:42]} Rc6 {[%emt 0:01:07]} 31. Bh5 {[%emt 0:08:20]} Qe6 {[%emt 0:00:11]} 32. Bf3 {[%emt 0:03:04]} Be4 {[%emt 0:01:31]} 33. Bxe4 {[%emt 0:01:31]} dxe4 {[%emt 0:00:02]} 34. Rd2 {[%emt 0:02:44]} Qxa2 {[%emt 0:02:27]} 35. Qe3 {[%emt 0:02:39]} Rac8 {[%emt 0:02:56]} 36. b4 {[%emt 0:01:30]} Qe6 {[%emt 0:02:05]} 37. Qxe4 {[%emt 0:00:35]} Qg4+ {[%emt 0:02:03]} 38. Rg2 {[%emt 0:00:15]} Nxg5 {[%emt 0:00:51]} 39. Qd5+ {[%emt 0:00:23]} Qe6 {[%emt 0:00:14]} 40. Rd1 {[%emt 0:03:29]} Qxd5 {[%emt 0:00:43]} 41. Rxd5 {[%emt 0:00:03]} Nh3+ {[%emt 0:00:06]} 42. Kf1 {[%emt 0:03:08]} Nxf4 {[%emt 0:00:04]} 43. Rgd2 {[%emt 0:01:59]} Nxd5 {[%emt 0:00:37]} 44. Rxd5 {[%emt 0:00:02]} Kf7 {[%emt 0:00:57]} 45. Rd7+ {[%emt 0:00:16]} Ke6 {[%emt 0:00:05]} 46. Rxg7 {[%emt 0:00:41]} Kxe5 {[%emt 0:00:06]} 47. Ra7 {[%emt 0:00:02]} Kd4 {[%emt 0:00:18]} 48. Rf7 {[%emt 0:01:39]} Kc3 {[%emt 0:00:05]} 49. Rf4 {[%emt 0:00:04]} Rd8 {[%emt 0:00:04]} 50. Ke1 {[%emt 0:00:56]} Rd4 {[%emt 0:00:10]} 51. Rf3+ {[%emt 0:01:42]} Kxb4 {[%emt 0:00:06]} 52. Rf5 {[%emt 0:00:11]} Rxc5 {[%emt 0:00:12]} 53. Rf6 {[%emt 0:00:03]} 0-1

[Event "26th Hit Open-A 2022"]
[Site "Nova Gorica"]
[Date "2022.09.19"]
[Round "6.39"]
[White "Oestmann, Lukas"]
[Black "Bajo, Tin"]
[Result "1-0"]
[ECO "C88"]
[WhiteElo "1620"]
[BlackElo "1999"]
[Annotator "NA"]
[PlyCount "97"]
[EventDate "2022.09.16"]
[EventType "swiss"]
[EventCountry "SLO"]
[SourceTitle "playchess.com"]
[Source "ChessBase"]
[SourceQuality "1"]
[TimeControl "5400+30"]

1. e4 {[%emt 0:00:03]} e5 {[%emt 0:03:02]} 2. Nf3 {[%emt 0:00:05]} Nc6 {[%emt 0:00:07]} 3. Bb5 {[%emt 0:00:05]} a6 {[%emt 0:00:09]} 4. Ba4 {[%emt 0:00:04]} Nf6 {[%emt 0:00:13]} 5. O-O {[%emt 0:00:05]} Be7 {[%emt 0:00:20]} 6. Re1 {[%emt 0:00:15]} b5 {[%emt 0:00:29]} 7. Bb3 {[%emt 0:00:06]} O-O {[%emt 0:00:07]} 8. a4 {[%emt 0:00:04]} Rb8 {[%emt 0:02:56]} 9. axb5 {[%emt 0:00:28]} axb5 {[%emt 0:00:06]} 10. d3 {[%emt 0:00:54]} d6 {[%emt 0:00:19]} 11. Nbd2 {[%emt 0:04:43]} h6 {[%emt 0:00:36]} 12. Nf1 {[%emt 0:00:28]} Be6 {[%emt 0:10:29]} 13. c3 {[%emt 0:02:06]} Re8 {[%emt 0:07:51]} 14. Ne3 {[%emt 0:03:21]} Bf8 {[%emt 0:01:18]} 15. Nd5 {[%emt 0:19:03]} Ne7 {[%emt 0:15:58]} 16. Nxf6+ {[%emt 0:02:15]} gxf6 {[%emt 0:00:03]} 17. Nh4 {[%emt 0:04:31]} Qd7 {[%emt 0:30:37]} 18. Bxe6 {[%emt 0:06:21]} fxe6 {[%emt 0:01:30]} 19. Qh5 {[%emt 0:03:30]} Kh7 {[%emt 0:00:15]} 20. Re3 {[%emt 0:10:23]} Bg7 {[%emt 0:01:00]} 21. Rg3 {[%emt 0:02:06]} Rg8 {[%emt 0:03:23]} 22. Qf7 {[%emt 0:07:05]} Qe8 {[%emt 0:03:59]} 23. Qxe6 {[%emt 0:00:33]} Qh5 {[%emt 0:00:06]} 24. Nf3 {[%emt 0:04:41]} Rge8 {[%emt 0:09:15]} 25. Qd7 {[%emt 0:03:02]} Qf7 {[%emt 0:00:53]} 26. h3 {[%emt 0:06:58]} Ra8 {[%emt 0:01:00]} 27. Rxa8 {[%emt 0:01:08]} Rxa8 {[%emt 0:00:02]} 28. Bd2 {[%emt 0:01:02]} Ra1+ {[%emt 0:03:14]} 29. Kh2 {[%emt 0:00:06]} Rf1 {[%emt 0:00:25]} 30. Nh4 {[%emt 0:01:56]} Rxf2 {[%emt 0:01:12]} 31. Be3 {[%emt 0:01:30]} Re2 {[%emt 0:00:58]} 32. Nf5 {[%emt 0:00:35]} Nxf5 {[%emt 0:02:12]} 33. Qxf7 {[%emt 0:00:07]} Nxg3 {[%emt 0:00:04]} 34. Bxh6 {[%emt 0:01:50]} Kxh6 {[%emt 0:01:51]} 35. Kxg3 {[%emt 0:00:06]} Re3+ {[%emt 0:01:04]} 36. Kg4 {[%emt 0:00:28]} Kh7 {[%emt 0:00:09]} 37. Qh5+ {[%emt 0:00:37]} Kg8 {[%emt 0:00:04]} 38. Qe8+ {[%emt 0:00:12]} Kh7 {[%emt 0:00:08]} 39. Qxb5 {[%emt 0:00:51]} Bh6 {[%emt 0:00:12]} 40. Kf5 {[%emt 0:03:15]} Rg3 {[%emt 0:00:38]} 41. Kxf6 {[%emt 0:00:44]} Rxg2 {[%emt 0:00:10]} 42. Ke6 {[%emt 0:00:58]} Bc1 {[%emt 0:00:46]} 43. b4 {[%emt 0:00:43]} Bb2 {[%emt 0:00:59]} 44. c4 {[%emt 0:00:50]} Bd4 {[%emt 0:00:44]} 45. h4 {[%emt 0:01:00]} Kh6 {[%emt 0:00:35]} 46. Qe8 {[%emt 0:00:37]} Rg7 {[%emt 0:00:37]} 47. Qh8+ {[%emt 0:00:27]} Rh7 {[%emt 0:01:14]} 48. Qf6+ {[%emt 0:00:05]} Kh5 {[%emt 0:00:04]} 49. Qg5# {[%emt 0:00:06]} 1-0

[Event "26th Hit Open-A 2022"]
[Site "Nova Gorica"]
[Date "2022.09.19"]
[Round "6.40"]
[White "Cirkvencic, Franci"]
[Black "Juvan, Vid"]
[Result "1-0"]
[ECO "D11"]
[WhiteElo "1987"]
[BlackElo "1564"]
[Annotator "NA"]
[PlyCount "37"]
[EventDate "2022.09.16"]
[EventType "swiss"]
[EventCountry "SLO"]
[SourceTitle "playchess.com"]
[Source "ChessBase"]
[SourceQuality "1"]
[TimeControl "5400+30"]

1. d4 {[%emt 0:00:04]} Nf6 {[%emt 0:00:48]} 2. Nf3 {[%emt 0:00:12]} d5 {[%emt 0:00:21]} 3. c4 {[%emt 0:00:09]} c6 {[%emt 0:00:19]} 4. g3 {[%emt 0:00:42]} Bf5 {[%emt 0:00:26]} 5. Bg2 {[%emt 0:01:16]} e6 {[%emt 0:00:20]} 6. O-O {[%emt 0:00:13]} h6 {[%emt 0:00:17]} 7. Nc3 {[%emt 0:00:25]} Bd6 {[%emt 0:01:06]} 8. cxd5 {[%emt 0:05:14]} exd5 {[%emt 0:00:16]} 9. Bf4 {[%emt 0:03:54]} Bxf4 {[%emt 0:01:31]} 10. gxf4 {[%emt 0:00:07]} Qd6 {[%emt 0:02:19]} 11. Ne5 {[%emt 0:01:16]} Ne4 {[%emt 0:00:24]} 12. Nxe4 {[%emt 0:02:39]} dxe4 {[%emt 0:02:06]} 13. Qb3 {[%emt 0:00:34]} Qe7 {[%emt 0:02:42]} 14. Bh3 {[%emt 0:05:35]} Bh7 {[%emt 0:02:36]} 15. d5 {[%emt 0:08:44]} f6 {[%emt 0:02:13]} 16. d6 {[%emt 0:00:36]} Qf8 {[%emt 0:00:37]} 17. Qxb7 {[%emt 0:01:00]} fxe5 {[%emt 0:00:38]} 18. Qc8+ {[%emt 0:00:34]} Kf7 {[%emt 0:00:19]} 19. Qe6# {[%emt 0:00:08]} 1-0

[Event "26th Hit Open-A 2022"]
[Site "Nova Gorica"]
[Date "2022.09.19"]
[Round "6.41"]
[White "Petrovcic, Cvetko"]
[Black "Fiolo, Costanza"]
[Result "0-1"]
[ECO "B27"]
[WhiteElo "1602"]
[BlackElo "1768"]
[Annotator "NA COMBH"]
[PlyCount "125"]
[EventDate "2022.09.16"]
[EventType "swiss"]
[EventCountry "SLO"]
[SourceTitle "playchess.com"]
[Source "ChessBase"]
[SourceQuality "1"]
[TimeControl "5400+30"]

1. e4 {[%emt 0:00:06]} c5 {[%emt 0:00:12]} 2. Nf3 {[%emt 0:00:07]} g6 {[%emt 0:00:18]} 3. Bc4 {[%emt 0:00:07]} d6 {[%emt 0:01:46]} 4. d4 {[%emt 0:01:09]} cxd4 {[%emt 0:01:33]} 5. Qxd4 {[%emt 0:02:32]} Nf6 {[%emt 0:01:45]} 6. e5 {[%emt 0:00:28]} Nc6 {[%emt 0:01:57]} 7. Qd3 {[%emt 0:07:47]} Bf5 {[%emt 0:04:55]} 8. Qb3 {[%emt 0:02:00]} Nxe5 {[%emt 0:06:54]} 9. Nxe5 {[%emt 0:04:59]} Qa5+ {[%emt 0:00:33]} 10. Nc3 {[%emt 0:00:20]} Qxe5+ {[%emt 0:01:49]} 11. Be3 {[%emt 0:00:10]} Be6 {[%emt 0:05:05]} 12. Qxb7 {[%emt 0:01:58]} Rd8 {[%emt 0:02:29]} 13. Bb5+ {[%emt 0:08:33]} Bd7 {[%emt 0:02:03]} 14. O-O {[%emt 0:00:33]} Ng4 {[%emt 0:06:53]} 15. g3 {[%emt 0:03:24]} Nxe3 {[%emt 0:03:05]} 16. fxe3 {[%emt 0:00:09]} Qxe3+ {[%emt 0:02:39]} 17. Kg2 {[%emt 0:00:01]} Qb6 {[%emt 0:05:07]} 18. Qd5 {[%emt 0:03:07]} e6 {[%emt 0:01:00]} 19. Rae1 {[%emt 0:00:18]} Be7 {[%emt 0:04:21]} 20. Bxd7+ {[%emt 0:07:22]} Rxd7 {[%emt 0:01:03]} 21. Qf3 {[%emt 0:05:18]} O-O {[%emt 0:02:01]} 22. b3 {[%emt 0:00:31]} Qb7 {[%emt 0:01:36]} 23. Ne4 {[%emt 0:00:33]} Rc7 {[%emt 0:03:08]} 24. c4 {[%emt 0:00:15]} d5 {[%emt 0:01:10]} 25. cxd5 {[%emt 0:00:44]} Qxd5 {[%emt 0:01:27]} 26. Rd1 {[%emt 0:01:02]} Rc2+ {[%emt 0:01:20]} 27. Kh1 {[%emt 0:01:49]} Qc6 {[%emt 0:00:52]} 28. a4 {[%emt 0:00:13]} f5 {[%emt 0:01:09]} 29. Nd2 {[%emt 0:05:40]} Qxf3+ {[%emt 0:00:36]} 30. Nxf3 {[%emt 0:00:05]} Bf6 {[%emt 0:03:04]} 31. Rd7 {[%emt 0:00:20]} a5 {[%emt 0:01:38]} 32. Nd2 {[%emt 0:03:48]} Rb8 {[%emt 0:03:18]} 33. Rd6 {[%emt 0:02:51]} Kf7 {[%emt 0:01:03]} 34. Rd7+ {[%emt 0:00:23]} Ke8 {[%emt 0:00:42]} 35. Rd3 {[%emt 0:00:34]} Rd8 {[%emt 0:01:17]} 36. Rxd8+ {[%emt 0:00:20]} Bxd8 {[%emt 0:00:20]} 37. Nc4 {[%emt 0:00:28]} Rc3 {[%emt 0:01:04]} 38. Rb1 {[%emt 0:00:32]} Bc7 {[%emt 0:01:22]} 39. Rb2 {[%emt 0:00:28]} e5 {[%emt 0:00:45]} 40. Na3 {[%emt 0:00:02]} Bb6 {[%emt 0:01:15]} 41. Nb5 {[%emt 0:00:18]} Rc1+ {[%emt 0:01:06]} 42. Kg2 {[%emt 0:00:14]} Rg1+ {[%emt 0:00:46]} 43. Kf3 {[%emt 0:02:40]} e4+ {[%emt 0:00:33]} 44. Kf4 {[%emt 0:00:31]} Rf1+ {[%emt 0:01:03]} 45. Ke5 {[%emt 0:00:20]} Rf2 {[%emt 0:00:31]} 46. Nd6+ {[%emt 0:02:28]} Kd7 {[%emt 0:00:36]} 47. Rxf2 {[%emt 0:04:45]} Bxf2 {[%emt 0:00:07]} 48. Nc4 {[%emt 0:00:34]} e3 {[%emt 0:01:52]} 49. Kf6 {[%emt 0:12:39]} e2 {[%emt 0:04:22]} 50. Ne5+ {[%emt 0:00:13]} Kd6 {[%emt 0:00:22]} 51. Nd3 {[%emt 0:00:06]} e1=Q 52. Nxe1 {[%emt 0:00:02]} Bxe1 {[%emt 0:00:50]} 53. Kg7 {[%emt 0:00:07]} Kc5 {[%emt 0:00:35]} 54. Kxh7 {[%emt 0:00:22]} g5 {[%emt 0:00:21]} 55. Kg6 {[%emt 0:00:02]} f4 {[%emt 0:00:24]} 56. Kxg5 {[%emt 0:00:48]} fxg3 {[%emt 0:00:13]} 57. hxg3 {[%emt 0:00:03]} Bxg3 {[%emt 0:00:10]} 58. Kg4 {[%emt 0:00:07]} Be1 {[%emt 0:00:17]} 59. Kf3 {[%emt 0:00:03]} Kb4 {[%emt 0:00:39]} 60. Ke2 {[%emt 0:00:02]} Bc3 {[%emt 0:00:48]} 61. Kd1 {[%emt 0:00:02]} Kxb3 {[%emt 0:00:10]} 62. Kc1 {[%emt 0:00:02]} Kxa4 {[%emt 0:00:12]} 63. Kc2 {[%emt 0:00:14]} 0-1

[Event "26th Hit Open-A 2022"]
[Site "Nova Gorica"]
[Date "2022.09.19"]
[Round "6.43"]
[White "Both, Aaron"]
[Black "Hellsten, Uffe"]
[Result "1-0"]
[ECO "C02"]
[WhiteElo "1963"]
[BlackElo "1732"]
[Annotator "TA"]
[PlyCount "41"]
[EventDate "2022.09.16"]
[EventType "swiss"]
[EventCountry "SLO"]
[SourceTitle "playchess.com"]
[Source "ChessBase"]
[SourceQuality "1"]
[TimeControl "5400+30"]

{[%evp 10,41,0,-15,0,0,0,0,0,0,0,0,0,0,9,4,42,41,74,0,0,0,0,-71,359,241,215,218,748,537,29992,29993,29993,29994]} 1. e4 {[%emt 0:00:07]} e6 {[%emt 0:00:20]} 2. d4 {[%emt 0:00:18]} d5 {[%emt 0:00:06]} 3. e5 {[%emt 0:00:14]} c5 {[%emt 0:00:06]} 4. c3 {[%emt 0:00:05]} Nc6 {[%emt 0:00:08]} 5. Nf3 {[%emt 0:00:09]} Bd7 {[%emt 0:00:16]} 6. Be3 {[%emt 0:01:59]} Nge7 {[%emt 0:00:33] C02: French: Advance Variation.} 7. Bd3 {[%emt 0:03:34]} cxd4 {[%emt 0:02:47]} 8. cxd4 {[%emt 0:00:44]} Nb4 {[%emt 0:00:50] The position is equal.} 9. Be2 {[%emt 0:02:09]} Nf5 {[%emt 0:04:48] [#]} 10. a3 $146 {[%emt 0:00:42]} ({Predecessor:} 10. Nc3 Be7 11. a3 Nc6 12. O-O Rc8 13. Bd3 Nxe3 14. fxe3 O-O 15. Rc1 g6 16. Kh1 {½-½ (31) Bebchuk,L (2275)-Johnston,A (2370) ICCF email 2012}) 10... Nc6 {[%emt 0:00:07]} 11. Nc3 {[%emt 0:00:21][%cal Bb1c3,Bc3a4,Ba4b6][%mdl 32]} Nxe3 {[%emt 0:07:56]} 12. fxe3 {[%emt 0:00:14]} Qb6 {[%emt 0:00:59]} 13. O-O {[%emt 0:00:44]} a5 {[%emt 0:03:12]} (13... Qxb2 $2 14. Na4 Qxa1 15. Qxa1 $18) 14. Ng5 {[%emt 0:02:17]} (14. Qc2 $16) 14... Nxe5 $1 $11 {[%emt 0:00:50][%cal Of8e7]} 15. Na4 {[%emt 0:10:44]} Qa7 {[%emt 0:02:36][%cal Of8e7]} 16. Qb3 {[%emt 0:03:07]} (16. dxe5 $11 Qxe3+ 17. Kh1 Qxg5 18. Nb6 Qxe5 19. Nxd7 Kxd7 20. Rxf7+ Kd8 {[#]} 21. Qa4 $1) 16... f6 $2 {[%emt 0:11:27][%mdl 8192] [#] Loses the game.} (16... Be7 $17 17. Nxe6 Bxe6 18. dxe5 O-O) 17. Nxe6 {[%emt 0:05:20]} Bxe6 {[%emt 0:00:51]} 18. dxe5 {[%emt 0:00:16]} fxe5 $2 {[%emt 0:00:36]} (18... O-O-O 19. Rac1+ Kb8 20. exf6 (20. Qc3 Rc8 $11) 20... Rd6) 19. Nb6 {[%emt 0:00:41]} Bc5 {[%emt 0:07:43]} 20. Qb5+ {[%emt 0:01:52]} Kd8 {[%emt 0:00:56]} 21. Qxc5 {[%emt 0:00:09] Weighted Error Value: White=0.48/Black=0.98} 1-0

[Event "26th Hit Open-A 2022"]
[Site "Nova Gorica"]
[Date "2022.09.19"]
[Round "6.44"]
[White "Azinovic, Igor"]
[Black "Budai, Federico"]
[Result "1/2-1/2"]
[ECO "C44"]
[WhiteElo "1814"]
[BlackElo "1712"]
[Annotator "NA COMBH"]
[PlyCount "78"]
[EventDate "2022.09.16"]
[EventType "swiss"]
[EventCountry "SLO"]
[SourceTitle "playchess.com"]
[Source "ChessBase"]
[SourceQuality "1"]
[TimeControl "5400+30"]

1. e4 {[%emt 0:00:04]} e5 {[%emt 0:01:45]} 2. Nf3 {[%emt 0:00:12]} Nc6 {[%emt 0:00:14]} 3. c3 {[%emt 0:00:11]} Nf6 {[%emt 0:01:24]} 4. d4 {[%emt 0:00:19]} exd4 {[%emt 0:01:50]} 5. e5 {[%emt 0:00:17]} Nd5 {[%emt 0:00:56]} 6. cxd4 {[%emt 0:03:30]} Bb4+ {[%emt 0:06:03]} 7. Nbd2 {[%emt 0:01:21]} O-O {[%emt 0:01:49]} 8. Qb3 {[%emt 0:01:58]} Nce7 {[%emt 0:05:12]} 9. Bc4 {[%emt 0:02:08]} Bxd2+ {[%emt 0:00:23]} 10. Bxd2 {[%emt 0:00:29]} Nb6 {[%emt 0:01:58]} 11. Bd3 {[%emt 0:02:11]} d6 {[%emt 0:02:27]} 12. O-O {[%emt 0:03:15]} dxe5 {[%emt 0:02:44]} 13. dxe5 {[%emt 0:01:10]} Be6 {[%emt 0:01:05]} 14. Qc2 {[%emt 0:00:23]} h6 {[%emt 0:01:14]} 15. Bc3 {[%emt 0:03:27]} Ned5 {[%emt 0:03:07]} 16. Rad1 {[%emt 0:00:51]} Qe7 {[%emt 0:03:34]} 17. Bd2 {[%emt 0:03:18]} Bg4 {[%emt 0:09:18]} 18. Be4 {[%emt 0:04:03]} Rad8 {[%emt 0:06:42]} 19. Rfe1 {[%emt 0:02:13]} c6 {[%emt 0:04:58]} 20. h3 {[%emt 0:01:58]} Bxf3 {[%emt 0:06:42]} 21. Bxf3 {[%emt 0:00:15]} Nb4 {[%emt 0:01:36]} 22. Bxb4 {[%emt 0:11:38]} Qxb4 {[%emt 0:00:20]} 23. a3 {[%emt 0:02:45]} Qe7 {[%emt 0:04:56]} 24. Bg4 {[%emt 0:01:12]} Rxd1 {[%emt 0:11:13]} 25. Qxd1 {[%emt 0:00:37]} g6 {[%emt 0:06:39]} 26. e6 {[%emt 0:03:43]} fxe6 {[%emt 0:03:45]} 27. Bxe6+ {[%emt 0:05:25]} Kg7 {[%emt 0:00:26]} 28. Bg4 {[%emt 0:03:42]} Qf6 {[%emt 0:02:15]} 29. Qc2 {[%emt 0:02:18]} h5 {[%emt 0:03:12]} 30. Bf3 {[%emt 0:03:54]} Rf7 {[%emt 0:00:57]} 31. Be4 {[%emt 0:06:25]} Nd7 {[%emt 0:02:45]} 32. Re3 {[%emt 0:00:57]} Ne5 {[%emt 0:00:40]} 33. Rg3 {[%emt 0:01:12]} h4 {[%emt 0:00:40]} 34. Re3 {[%emt 0:01:28]} Nc4 {[%emt 0:02:34]} 35. Rf3 {[%emt 0:00:35]} Qe6 {[%emt 0:00:21]} 36. Rxf7+ {[%emt 0:01:41]} Qxf7 {[%emt 0:00:12]} 37. Bxg6 {[%emt 0:01:20]} Qxg6 {[%emt 0:00:47]} 38. Qxc4 {[%emt 0:00:16]} Qb1+ {[%emt 0:00:18]} 39. Kh2 {[%emt 0:00:18]} Qxb2 {[%emt 0:00:50]} 1/2-1/2